bitfinex/quotes_BTCUSD_20251117
["timestamp","ask_amount","ask_price","bid_price","bid_amount"]
[1763400172868,0.016,94128.0,94120.0,0.04341874]
[1763400173502,0.03146388,94128.0,94121.0,0.10416178]
[1763400173710,0.05475,94127.0,94120.0,0.001]
[1763400173920,0.0375,94121.0,94120.0,0.001]
[1763400174353,0.43513,94121.0,94120.0,0.001]
[1763400174573,2.45487029,94121.0,94120.0,0.001]
[1763400174807,0.323,94120.0,94119.0,0.001]
[1763400175025,2.42999029,94120.0,94119.0,0.00013193]
[1763400175477,2.64248497,94120.0,94119.0,0.00013193]
[1763400175916,2.6433247,94120.0,94119.0,1.93e-06]
[1763400176804,2.64483317,94120.0,94119.0,1.93e-06]
[1763400177209,2.43233849,94120.0,94119.0,1.93e-06]
[1763400178611,2.43183002,94120.0,94119.0,1.93e-06]
[1763400179232,2.45759247,94120.0,94119.0,1.93e-06]
[1763400180013,2.50759247,94120.0,94119.0,1.93e-06]
[1763400180330,2.45759247,94120.0,94119.0,1.93e-06]
[1763400180730,2.45659247,94120.0,94119.0,1.93e-06]
[1763400180930,2.45759247,94120.0,94119.0,1.93e-06]
[1763400181132,2.45859247,94120.0,94119.0,1.93e-06]
[1763400181337,2.50859247,94120.0,94119.0,1.93e-06]
[1763400181544,2.50859247,94120.0,94077.0,0.02833483]
[1763400181545,0.02062585,94110.0,94077.0,0.02833483]
[1763400181755,0.05416,94078.0,94077.0,0.00013195]
[1763400181931,0.07390029,94078.0,94077.0,0.00013195]
[1763400182133,0.45234029,94078.0,94077.0,0.00013195]
[1763400184271,0.49757432,94078.0,94077.0,0.00013195]
[1763400184471,2.49757432,94078.0,94077.0,0.00013195]
[1763400185472,2.6017361,94078.0,94077.0,0.00013195]
[1763400185672,0.53560989,94069.0,94068.0,0.02833483]
[1763400185900,0.323,94068.0,94067.0,0.02833483]
[1763400186102,0.39818029,94068.0,94067.0,0.00044019]
[1763400186299,0.43434029,94068.0,94067.0,0.00044019]
[1763400186728,0.43434029,94068.0,94042.0,0.07603336]
[1763400186729,2.43434029,94068.0,94057.0,0.03784719]
[1763400186929,0.323,94053.0,94051.0,0.03807225]
[1763400187100,0.323,94051.0,94036.0,0.0570213]
[1763400187300,2.11134029,94052.0,94034.0,0.0570213]
[1763400187301,0.323,94045.0,94034.0,0.0570213]
[1763400187531,0.05413,94035.0,94028.0,0.0570213]
[1763400188134,0.05413,94035.0,94026.0,0.0570213]
[1763400188335,0.03616,94029.0,94024.0,0.0570213]
[1763400188563,0.03616,94029.0,94025.0,0.0570213]
[1763400188713,0.00043929,94029.0,94025.0,0.0570213]
[1763400189191,0.03616,94026.0,94024.0,0.0570213]
[1763400189390,0.05544,94028.0,93990.0,0.0004]
[1763400189391,0.05544,94028.0,94022.0,0.0570213]
[1763400189597,0.05544,94027.0,94019.0,0.0570213]
[1763400189754,0.03616,94020.0,94019.0,0.0570213]
[1763400189969,0.05416,94020.0,94017.0,0.0570213]
[1763400190293,0.05416,94020.0,94014.0,0.0570213]
[1763400190294,0.03616,94018.0,94014.0,0.0570213]
[1763400190513,0.03616,94015.0,94010.0,0.0570213]
[1763400190743,0.37844,94018.0,94009.0,0.0570213]
[1763400190945,0.018,94020.0,94019.0,0.001]
[1763400191152,0.018,94020.0,94013.0,0.0570213]
[1763400191367,0.03616,94014.0,94012.0,0.0570213]
[1763400191573,0.05544,94019.0,94011.0,0.16118308]
[1763400191774,0.03616,94012.0,94011.0,0.10416178]
[1763400191902,0.03616,94012.0,94011.0,0.16119572]
[1763400192106,0.0916,94012.0,94011.0,0.16119572]
[1763400192311,0.05411,94012.0,94011.0,0.17731529]
[1763400192508,0.018,94020.0,94012.0,0.04341874]
[1763400192712,0.018,94020.0,94017.0,0.05700588]
[1763400192916,0.018,94020.0,94018.0,0.06469126]
[1763400193123,0.341,94020.0,94018.0,0.06469126]
[1763400193324,0.341,94020.0,94019.0,0.05558845]
[1763400193937,0.018,94020.0,94019.0,0.05558845]
[1763400194143,0.018,94027.0,94020.0,0.04341874]
[1763400194342,0.018,94027.0,94026.0,0.14758052]
[1763400194343,0.341,94027.0,94026.0,0.14758052]
[1763400194746,0.018,94027.0,94026.0,0.14758052]
[1763400196062,0.018,94027.0,94026.0,0.14858052]
[1763400196279,0.018,94027.0,94026.0,0.17035613]
[1763400196902,0.1096,94027.0,94026.0,0.04541874]
[1763400197517,0.1096,94027.0,94026.0,0.002]
[1763400197720,0.25362848,94035.0,94026.0,0.002]
[1763400197934,0.25362848,94035.0,94026.0,0.002132]
[1763400198335,0.01498281,94035.0,94026.0,0.002132]
[1763400198538,1.0708545,94036.0,94026.0,0.001132]
[1763400198763,1.0708545,94036.0,94026.0,0.002132]
[1763400199322,1.0708545,94036.0,94026.0,0.001132]
[1763400199522,1.0708545,94036.0,94026.0,0.000132]
[1763400199885,0.323,94035.0,94026.0,0.001132]
[1763400200126,0.323,94035.0,94026.0,0.000132]
[1763400200987,0.323,94035.0,94026.0,0.001132]
[1763400201515,0.01986033,94034.0,94026.0,0.001132]
[1763400201737,0.01986033,94033.0,94026.0,0.001132]
[1763400201927,0.01986033,94032.0,94026.0,0.001132]
[1763400202104,0.323,94035.0,94026.0,0.001132]
[1763400202105,0.323,94035.0,94026.0,0.000132]
[1763400202317,0.01987053,94034.0,94026.0,0.000132]
[1763400202495,0.01987053,94033.0,94026.0,0.001132]
[1763400202726,0.323,94027.0,94026.0,0.000132]
[1763400202915,2.34287242,94027.0,94026.0,0.000132]
[1763400203111,2.34287242,94027.0,94026.0,0.001132]
[1763400203315,2.34340287,94027.0,94026.0,0.000132]
[1763400203521,2.36860588,94027.0,94026.0,0.000132]
[1763400203757,2.36860588,94027.0,94026.0,0.001132]
[1763400203959,2.36860588,94027.0,94026.0,0.000132]
[1763400204556,2.36860588,94027.0,93990.0,0.0004]
[1763400204557,2.0,94026.0,93990.0,0.0004]
[1763400204790,2.0,94026.0,93990.0,0.00083929]
[1763400204791,0.323,93996.0,93990.0,0.00083929]
[1763400205336,0.323,93994.0,93990.0,0.00083929]
[1763400205542,0.01990093,93993.0,93990.0,0.00083929]
[1763400205749,0.01990093,93992.0,93990.0,0.00083929]
[1763400205973,0.323,93994.0,93990.0,0.00183929]
[1763400206396,0.323,93999.0,93991.0,0.10416178]
[1763400206591,1.0708545,94000.0,93991.0,0.10416178]
[1763400206592,1.0708545,94000.0,93998.0,0.02698]
[1763400206804,1.46160258,94008.0,93992.0,0.10217725]
[1763400207110,0.01541359,94036.0,94007.0,0.10416178]
[1763400207111,2.0,94035.0,94007.0,0.10416178]
[1763400207339,0.02984254,94034.0,94008.0,0.02127478]
[1763400207486,0.01989503,94033.0,94008.0,0.02127478]
[1763400207725,0.01989503,94032.0,94009.0,0.01254366]
[1763400207919,0.01541359,94036.0,94010.0,0.02127433]
[1763400207920,0.01989503,94031.0,94010.0,0.02127433]
[1763400208105,0.01989503,94030.0,94010.0,0.02127433]
[1763400208462,0.73080129,94020.0,94011.0,0.02074392]
[1763400208666,0.34289503,94019.0,94011.0,0.02074392]
[1763400208807,0.01989503,94018.0,94011.0,0.02074392]
[1763400209167,0.01989503,94017.0,94011.0,0.02074392]
[1763400209391,0.01989503,94016.0,94011.0,0.02074392]
[1763400209617,0.01989503,94015.0,94011.0,0.01754947]
[1763400209781,0.01989503,94014.0,94007.0,0.10416178]
[1763400209984,0.73080129,94021.0,94008.0,0.0289019]
[1763400210228,0.01991301,94020.0,94011.0,0.002]
[1763400210393,0.01991301,94019.0,94011.0,0.002]
[1763400210598,0.01991301,94018.0,94011.0,0.002]
[1763400210808,0.01991301,94017.0,94011.0,0.001]
[1763400210969,0.01991301,94016.0,94011.0,0.001]
[1763400211172,0.323,94020.0,94011.0,0.001]
[1763400211371,0.01991407,94019.0,94011.0,0.001]
[1763400211682,0.01991407,94018.0,94008.0,0.0289019]
[1763400211903,0.01991407,94017.0,94011.0,0.002]
[1763400212090,0.323,94020.0,94011.0,0.001]
[1763400212293,0.01992288,94019.0,94011.0,0.001]
[1763400212496,0.01992288,94018.0,94011.0,0.002]
[1763400212691,0.01992288,94017.0,94011.0,0.01450637]
[1763400212895,0.01992288,94016.0,94011.0,0.01450637]
[1763400213151,0.323,94020.0,94011.0,0.01450637]
[1763400213152,0.323,94020.0,94012.0,0.06469261]
[1763400213354,0.01993402,94019.0,94012.0,0.06469261]
[1763400213481,0.73080129,94021.0,94019.0,0.02439]
[1763400213677,0.73080129,94029.0,94015.0,0.06469194]
[1763400213882,1.05380129,94029.0,94028.0,0.10416178]
[1763400214103,0.01993259,94029.0,94028.0,0.10416178]
[1763400214912,0.01993259,94029.0,94028.0,0.10516178]
[1763400215114,0.01993259,94029.0,94028.0,0.10616178]
[1763400215345,0.02990463,94029.0,94028.0,0.10616178]
[1763400215546,0.02990463,94029.0,94028.0,0.1601967]
[1763400215751,0.01993259,94029.0,94028.0,0.2438967]
[1763400216357,0.01993259,94029.0,94028.0,0.2418967]
[1763400216587,0.01534729,94036.0,94029.0,0.04341874]
[1763400216798,0.01994562,94035.0,94031.0,0.04341874]
[1763400217013,0.01994562,94034.0,94033.0,0.04341874]
[1763400217435,0.73080129,94060.0,94035.0,0.04341874]
[1763400217634,0.73080129,94060.0,94059.0,0.10416178]
[1763400217635,0.0151529,94060.0,94059.0,0.10416178]
[1763400217861,0.73080129,94069.0,94059.0,0.10416178]
[1763400218065,0.00997087,94068.0,94060.0,0.01888049]
[1763400218316,0.00997087,94067.0,94059.0,0.11457796]
[1763400218487,0.00997087,94067.0,94060.0,0.10416178]
[1763400218690,0.02509182,94067.0,94060.0,0.10416178]
[1763400218896,0.00997087,94066.0,94060.0,0.10416178]
[1763400219102,0.00997087,94065.0,94060.0,0.10416178]
[1763400219298,0.323,94068.0,94060.0,0.10416178]
[1763400219504,0.00996684,94067.0,94060.0,0.10516178]
[1763400219874,0.00996684,94066.0,94060.0,0.10516178]
[1763400220085,0.00996684,94065.0,94060.0,0.10516178]
[1763400220315,0.00996684,94064.0,94060.0,0.10516178]
[1763400220518,0.00996528,94063.0,94060.0,0.001]
[1763400220765,0.00996528,94062.0,94044.0,0.10416178]
[1763400221003,1.05380129,94054.0,94032.0,0.02296665]
[1763400221212,1.05380129,94054.0,94028.0,0.10416178]
[1763400221213,0.323,94041.0,94028.0,0.10416178]
[1763400221434,0.323,94041.0,94029.0,0.04341874]
[1763400222108,0.323,94041.0,94031.0,0.04341874]
[1763400222349,0.323,94041.0,94028.0,0.10416178]
[1763400222350,0.323,94038.0,94033.0,0.04341874]
[1763400222600,0.323,94038.0,94035.0,0.04341874]
[1763400222809,0.01549829,94068.0,94038.0,0.04341874]
[1763400223022,0.01549829,94068.0,94041.0,0.04341874]
[1763400223243,0.73080129,94070.0,94043.0,0.04341874]
[1763400223462,0.73080129,94060.0,94045.0,0.04341874]
[1763400223681,0.01519472,94070.0,94047.0,0.04341874]
[1763400223890,0.73093324,94070.0,94060.0,0.04341874]
[1763400224094,0.74598688,94070.0,94062.0,0.04341874]
[1763400224309,0.74598688,94070.0,94064.0,0.04341874]
[1763400224718,0.74598688,94070.0,94066.0,0.04341874]
[1763400224719,0.323,94069.0,94066.0,0.04341874]
[1763400224847,0.01518559,94070.0,94068.0,0.04341874]
[1763400225049,0.01518559,94070.0,94069.0,0.06467972]
[1763400225280,0.01518559,94070.0,94069.0,0.14800972]
[1763400226408,0.00013195,94070.0,94069.0,0.14800972]
[1763400226635,0.00013195,94070.0,94069.0,0.14900972]
[1763400227035,0.00013195,94070.0,94069.0,0.15100972]
[1763400227440,0.01646555,94070.0,94069.0,0.15100972]
[1763400227639,0.01646555,94070.0,94069.0,0.14900972]
[1763400227840,0.01646555,94070.0,94069.0,0.15100972]
[1763400228217,0.01646555,94070.0,94069.0,0.14900972]
[1763400228376,0.01646555,94070.0,94069.0,0.07854874]
[1763400228570,0.01646555,94070.0,94069.0,0.07954874]
[1763400229031,0.01646555,94070.0,94069.0,0.04741874]
[1763400229454,0.01646555,94070.0,94069.0,0.04541874]
[1763400229837,0.01646555,94070.0,94069.0,0.04641874]
[1763400230296,0.01646555,94070.0,94069.0,0.04441874]
[1763400230700,0.01646555,94070.0,94069.0,0.04641874]
[1763400231596,0.03631277,94070.0,94069.0,0.003]
[1763400232232,0.03631277,94070.0,94069.0,0.002]
[1763400232432,0.03631277,94070.0,94069.0,0.003]
[1763400232807,0.03631277,94070.0,94069.0,0.002]
[1763400233269,0.01646555,94070.0,94062.0,0.04341874]
[1763400233649,0.01646555,94070.0,94069.0,0.001]
[1763400233852,0.01646555,94070.0,94069.0,0.04441874]
[1763400234484,0.01646555,94070.0,94069.0,0.04341874]
[1763400235251,0.01646555,94070.0,94069.0,0.04441874]
[1763400235473,0.01646555,94070.0,94069.0,0.06905874]
[1763400236023,0.01646555,94070.0,94069.0,0.04441874]
[1763400237000,0.01646555,94070.0,94069.0,0.04541874]
[1763400237205,0.01646555,94070.0,94069.0,0.05208685]
[1763400237412,0.01646555,94070.0,94069.0,0.002]
[1763400238229,0.01646555,94070.0,94062.0,0.04341874]
[1763400238468,0.01646555,94070.0,94069.0,0.001]
[1763400239350,0.01646555,94070.0,94069.0,0.002]
[1763400239549,0.01646555,94070.0,94069.0,0.001]
[1763400239989,0.01646555,94070.0,94069.0,0.002]
[1763400240767,0.01646555,94070.0,94069.0,0.04541874]
[1763400240969,0.01646555,94070.0,94069.0,0.0520868]
[1763400241195,0.01646555,94070.0,94069.0,0.04541874]
[1763400241960,0.0363511,94070.0,94069.0,0.002]
[1763400243296,0.0363511,94070.0,94069.0,0.001]
[1763400243679,0.0363511,94070.0,94020.0,0.00999999]
[1763400243680,0.323,94069.0,94020.0,0.00999999]
[1763400243876,0.323,94066.0,94043.0,0.10416178]
[1763400244086,0.323,94052.0,94044.0,0.10416178]
[1763400245700,0.73080129,94053.0,94046.0,0.04341874]
[1763400245701,0.323,94053.0,94046.0,0.04341874]
[1763400245879,0.323,94053.0,94048.0,0.04341874]
[1763400246088,0.323,94053.0,94049.0,0.02126551]
[1763400246288,0.323,94053.0,94028.0,0.12905178]
[1763400246289,0.01991011,94052.0,94028.0,0.10416178]
[1763400246497,0.01991011,94052.0,93995.0,0.13324375]
[1763400246498,0.323,94037.0,93995.0,0.13324375]
[1763400246706,0.323,94016.0,93998.0,0.02489]
[1763400247037,0.323,94016.0,93991.0,0.10416178]
[1763400247378,0.323,94012.0,93991.0,0.10416178]
[1763400247585,1.46160258,94001.0,93991.0,0.10416178]
[1763400247808,1.46160258,94001.0,93991.0,0.10460107]
[1763400248020,0.73080129,94001.0,93992.0,0.0212784]
[1763400248243,0.73080129,94001.0,93993.0,0.01262795]
[1763400248672,0.73080129,94002.0,93994.0,0.06469669]
[1763400249084,0.73080129,94002.0,94001.0,0.10069874]
[1763400249316,0.73080129,94011.0,94002.0,0.04341874]
[1763400249521,0.73080129,94011.0,94010.0,0.10416178]
[1763400249522,1.05380129,94011.0,94010.0,0.10416178]
[1763400249939,1.05380129,94011.0,94010.0,0.11670555]
[1763400250586,1.05380129,94011.0,94010.0,0.16012429]
[1763400250797,0.323,94011.0,94010.0,0.14858052]
[1763400251229,0.323,94011.0,94010.0,0.14958052]
[1763400251435,0.323,94011.0,94010.0,0.002]
[1763400252937,0.21267368,94041.0,94010.0,0.002]
[1763400252938,0.05367191,94060.0,94010.0,0.12479874]
[1763400253171,0.0163336,94070.0,94020.0,0.04341874]
[1763400253172,0.73080129,94030.0,94020.0,0.04341874]
[1763400253394,0.73080129,94030.0,94022.0,0.04341874]
[1763400253591,0.73080129,94040.0,94030.0,0.04341874]
[1763400253807,0.73080129,94040.0,94032.0,0.04341874]
[1763400254029,0.73080129,94040.0,94034.0,0.04341874]
[1763400254246,0.73080129,94040.0,94039.0,0.10416178]
[1763400254452,1.05380129,94040.0,94039.0,0.10416178]
[1763400254693,0.323,94040.0,94039.0,0.10416178]
[1763400256455,0.323,94040.0,94039.0,0.12642955]
[1763400256668,0.323,94040.0,94039.0,0.16984829]
[1763400256929,0.73080129,94049.0,94040.0,0.04341874]
[1763400257124,0.73080129,94050.0,94049.0,0.04341874]
[1763400257279,0.323,94050.0,94049.0,0.06468425]
[1763400257816,0.323,94050.0,94040.0,0.04341874]
[1763400257817,0.323,94049.0,94040.0,0.04341874]
[1763400258059,0.323,94049.0,94042.0,0.04341874]
[1763400259882,0.323,94049.0,94039.0,0.10416178]
[1763400260285,0.73080129,94052.0,94039.0,0.10416178]
[1763400260286,0.323,94051.0,94042.0,0.001]
[1763400260486,0.323,94051.0,94042.0,0.002]
[1763400261091,0.323,94051.0,94018.0,0.02345]
[1763400261092,0.323,94049.0,94018.0,0.02345]
[1763400261300,2.0,94069.0,94042.0,0.001]
[1763400261503,0.323,94066.0,94042.0,0.001]
[1763400261710,0.323,94062.0,94042.0,0.001]
[1763400261913,0.01646555,94070.0,94042.0,0.001]
[1763400261914,0.323,94057.0,94042.0,0.001]
[1763400262093,0.323,94054.0,94042.0,0.001]
[1763400262296,0.323,94049.0,94042.0,0.001]
[1763400262513,0.01991283,94048.0,94040.0,0.10416178]
[1763400262731,0.01991283,94048.0,94042.0,0.001]
[1763400263177,0.01991283,94048.0,94040.0,0.10416178]
[1763400263409,0.01991283,94048.0,94042.0,0.001]
[1763400263762,0.323,94045.0,94040.0,0.001]
[1763400263974,0.323,94043.0,94040.0,0.002]
[1763400264195,0.323,94043.0,94040.0,0.001]
[1763400264424,0.323,94039.0,94010.0,0.10416178]
[1763400264715,0.01063264,94050.0,94010.0,0.10416178]
[1763400264716,0.323,94035.0,94010.0,0.10416178]
[1763400264938,1.05380129,94037.0,94010.0,0.10416178]
[1763400264939,0.323,94031.0,94010.0,0.10416178]
[1763400265135,0.323,94027.0,94010.0,0.10416178]
[1763400265382,0.323,94025.0,94010.0,0.10416178]
[1763400265598,0.323,94019.0,94010.0,0.10460107]
[1763400265816,0.323,94019.0,94011.0,0.01046011]
[1763400266032,0.323,94019.0,94011.0,0.07515295]
[1763400266250,0.323,94019.0,94011.0,0.05387885]
[1763400266685,0.323,94019.0,94011.0,0.04341874]
[1763400266902,0.323,94020.0,94011.0,0.04341874]
[1763400267802,0.323,94020.0,94011.0,0.04441874]
[1763400268045,0.323,94020.0,94012.0,0.10416178]
[1763400269587,0.02867402,94067.0,94020.0,0.04341874]
[1763400269806,2.0,94065.0,94047.0,0.10416178]
[1763400270022,2.0,94056.0,94033.0,0.04341874]
[1763400270281,0.01992942,94055.0,94047.0,0.10416178]
[1763400270486,0.323,94053.0,94047.0,0.10416178]
[1763400271086,0.10416178,94088.0,94047.0,0.10416178]
[1763400271087,2.0,94079.0,94047.0,0.10416178]
[1763400271351,2.323,94056.0,94047.0,0.10416178]
[1763400271558,0.323,94054.0,94047.0,0.10416178]
[1763400272063,0.323,94054.0,94047.0,0.10357079]
[1763400272281,0.323,94054.0,94048.0,0.01035708]
[1763400272938,0.323,94056.0,94049.0,0.04341874]
[1763400273164,1.07157909,94057.0,94049.0,0.04341874]
[1763400273165,0.323,94054.0,94051.0,0.04341874]
[1763400273598,0.323,94054.0,94052.0,0.02126483]
[1763400274030,0.323,94054.0,94049.0,0.04341874]
[1763400274246,0.323,94054.0,94051.0,0.04341874]
[1763400274680,0.323,94054.0,94052.0,0.02126483]
[1763400276126,0.323,94061.0,94052.0,0.02126483]
[1763400276375,0.0199396,94060.0,94052.0,0.02126483]
[1763400276594,0.0199396,94059.0,94052.0,0.02126483]
[1763400276809,0.0199396,94058.0,94052.0,0.02126483]
[1763400277027,0.0199396,94057.0,94052.0,0.02126483]
[1763400277244,0.323,94061.0,94052.0,0.02126483]
[1763400277460,0.0199393,94060.0,94052.0,0.02126483]
[1763400277670,0.323,94061.0,94037.0,0.04341874]
[1763400277671,0.0199393,94059.0,94037.0,0.04341874]
[1763400277929,0.323,94055.0,94048.0,0.10416178]
[1763400278156,0.323,94055.0,94032.0,0.10416178]
[1763400278157,0.323,94053.0,94032.0,0.10416178]
[1763400278380,0.323,94049.0,94032.0,0.10416178]
[1763400278654,0.323,94047.0,94032.0,0.11457796]
[1763400278842,0.01994176,94046.0,94033.0,0.04341874]
[1763400279088,0.323,94042.0,94034.0,0.0212689]
[1763400279312,0.01994176,94041.0,94034.0,0.0212689]
[1763400280183,0.323,94042.0,94034.0,0.0212689]
[1763400280184,0.01994176,94040.0,94034.0,0.0212689]
[1763400280399,0.01994176,94039.0,94034.0,0.0222689]
[1763400280620,0.01994176,94038.0,94034.0,0.0222689]
[1763400280839,0.01994176,94037.0,94034.0,0.0212689]
[1763400281058,0.01994176,94036.0,94033.0,0.04341874]
[1763400281277,0.01994176,94036.0,94034.0,0.10516178]
[1763400281492,0.01994176,94035.0,94034.0,0.14858052]
[1763400281733,0.01994176,94035.0,94034.0,0.001]
[1763400281956,0.01994176,94035.0,94034.0,0.002]
[1763400282179,0.01994176,94035.0,94034.0,0.001]
[1763400282393,0.01994176,94035.0,94034.0,0.002]
[1763400282607,0.01994176,94035.0,94034.0,0.001]
[1763400283947,0.01994176,94035.0,94034.0,0.002]
[1763400285264,0.16118675,94043.0,94034.0,0.002]
[1763400285487,2.0,94043.0,94034.0,0.002]
[1763400286145,2.0,94043.0,94034.0,0.001]
[1763400286395,2.0,94043.0,94013.0,0.04341874]
[1763400286600,2.0,94043.0,94033.0,0.10416178]
[1763400286833,2.0,94043.0,94034.0,0.001]
[1763400287271,0.323,94042.0,94034.0,0.001]
[1763400287509,0.323,94038.0,94034.0,0.001]
[1763400287719,1.0715032,94044.0,94034.0,0.001]
[1763400287720,0.323,94036.0,94034.0,0.001]
[1763400287932,0.323,94036.0,94015.0,0.04341874]
[1763400288149,0.323,94036.0,94033.0,0.001]
[1763400288364,0.323,94036.0,94015.0,0.06215253]
[1763400288585,0.323,94036.0,94028.0,0.10416178]
[1763400288804,0.323,94050.0,94034.0,0.001]
[1763400289020,2.0,94051.0,94013.0,0.00043929]
[1763400289021,0.323,94046.0,94013.0,0.04385803]
[1763400289236,0.323,94042.0,94028.0,0.10416178]
[1763400289453,0.323,94037.0,94033.0,0.001]
[1763400289666,0.323,94037.0,94028.0,0.10416178]
[1763400289881,1.0715032,94038.0,94028.0,0.10416178]
[1763400289882,0.323,94035.0,94028.0,0.10416178]
[1763400290346,2.0,94032.0,94013.0,0.04385803]
[1763400290566,0.323,94022.0,94013.0,0.04385803]
[1763400291640,0.323,94022.0,94013.0,0.04485803]
[1763400291861,0.323,94022.0,94013.0,0.00143929]
[1763400292064,0.323,94018.0,94013.0,0.00043929]
[1763400292269,2.1430064,94023.0,94013.0,0.00043929]
[1763400292270,0.323,94016.0,94013.0,0.00043929]
[1763400292477,0.323,94016.0,94013.0,0.00143929]
[1763400293105,0.323,94016.0,94013.0,0.00243929]
[1763400293353,0.323,94020.0,94013.0,0.00143929]
[1763400293561,0.323,94016.0,94013.0,0.00243929]
[1763400294268,0.323,94016.0,94013.0,0.00043929]
[1763400294497,0.323,94016.0,94013.0,0.00143929]
[1763400294684,0.323,94020.0,94013.0,0.00143929]
[1763400294929,0.323,94016.0,94013.0,0.00143929]
[1763400295583,2.323,94014.0,94013.0,0.00143929]
[1763400296455,2.323,94014.0,94013.0,0.00243929]
[1763400296896,2.323,94014.0,93967.0,0.04964]
[1763400296897,0.323,94012.0,93967.0,0.04964]
[1763400297126,0.323,94000.0,93994.0,0.10416178]
[1763400297345,0.323,93998.0,93994.0,0.10416178]
[1763400298028,0.323,93998.0,93990.0,0.00053176]
[1763400298252,0.323,93999.0,93994.0,0.10416178]
[1763400298479,0.323,93997.0,93994.0,0.10416178]
[1763400298702,0.323,93997.0,93994.0,0.10516178]
[1763400298926,0.323,93997.0,93994.0,0.10416178]
[1763400299339,0.323,94009.0,93991.0,0.04341874]
[1763400299579,0.323,93998.0,93991.0,0.04341874]
[1763400299781,0.323,93998.0,93990.0,0.00153176]
[1763400299782,2.0,93997.0,93990.0,0.00153176]
[1763400300142,2.0,93997.0,93960.0,0.0004]
[1763400300345,1.0715032,93974.0,93964.0,0.10429387]
[1763400300722,1.0715032,93974.0,93965.0,0.04341874]
[1763400301147,1.0715032,93974.0,93967.0,0.04341874]
[1763400301356,2.0,93996.0,93964.0,0.10429387]
[1763400301594,1.0715032,93974.0,93969.0,0.04341874]
[1763400301773,0.323,93973.0,93971.0,0.04341874]
[1763400302190,0.323,93973.0,93965.0,0.04341874]
[1763400302392,0.323,93973.0,93965.0,0.05823]
[1763400302780,1.0715032,93981.0,93967.0,0.04341874]
[1763400302998,1.0715032,93981.0,93969.0,0.04341874]
[1763400302999,2.0,93980.0,93969.0,0.04341874]
[1763400303203,2.0,93980.0,93979.0,0.10416178]
[1763400303432,2.0,93988.0,93969.0,0.04341874]
[1763400303601,2.0,93988.0,93971.0,0.04341874]
[1763400303938,2.0,93988.0,93964.0,0.10429387]
[1763400303939,2.0,93988.0,93973.0,0.04341874]
[1763400304243,2.0,93988.0,93965.0,0.04341874]
[1763400304465,1.0715032,93975.0,93965.0,0.04341874]
[1763400304794,0.323,93974.0,93965.0,0.04341874]
[1763400305625,1.0715032,93975.0,93964.0,0.00013209]
[1763400305626,0.323,93970.0,93964.0,0.00013209]
[1763400305826,0.323,93968.0,93964.0,0.00013209]
[1763400306192,0.323,93962.0,93940.0,0.10416178]
[1763400306398,0.323,93949.0,93940.0,0.00013179]
[1763400306775,0.323,93945.0,93940.0,0.00013179]
[1763400306777,0.323,93943.0,93930.0,0.0004]
[1763400306981,2.1430064,93950.0,93920.0,4e-05]
[1763400306982,0.323,93937.0,93920.0,4e-05]
[1763400307202,0.323,93937.0,93910.0,0.0004]
[1763400307203,0.323,93935.0,93910.0,0.0004]
[1763400307606,0.323,93919.0,93910.0,0.0004]
[1763400308480,0.323,93915.0,93906.0,9e-05]
[1763400308686,0.323,93911.0,93890.0,0.0004]
[1763400308911,0.323,93911.0,93834.0,0.02244]
[1763400308912,0.323,93899.0,93840.0,0.03243999]
[1763400309129,0.323,93889.0,93847.0,0.04617]
[1763400309322,0.323,93889.0,93888.0,7.51769632]
[1763400309589,2.323,93889.0,93888.0,7.46252632]
[1763400310245,2.3231317,93889.0,93888.0,7.46252632]
[1763400312971,0.0001317,93889.0,93888.0,7.46252632]
[1763400313832,0.0001317,93889.0,93888.0,7.50594506]
[1763400314661,0.0001317,93889.0,93888.0,7.50694506]
[1763400315769,0.0001317,93889.0,93888.0,7.46352632]
[1763400315989,0.0001317,93889.0,93888.0,7.46252632]
[1763400316201,0.0001317,93889.0,93888.0,7.46352632]
[1763400316418,0.0001317,93889.0,93888.0,7.46252632]
[1763400316654,2.3231317,93889.0,93888.0,7.46252632]
[1763400316899,2.42680108,93889.0,93888.0,7.46352632]
[1763400317103,2.3231317,93889.0,93888.0,7.46352632]
[1763400317644,2.3231317,93889.0,93888.0,7.46252632]
[1763400317820,0.3231317,93889.0,93888.0,7.46252632]
[1763400319477,2.3231317,93889.0,93888.0,7.46252632]
[1763400322415,1.0715032,93898.0,93888.0,7.46252632]
[1763400322416,2.0,93897.0,93888.0,7.46252632]
[1763400322599,2.0,93895.0,93888.0,7.4629657]
[1763400322897,2.0,93893.0,93888.0,7.4629657]
[1763400323191,2.0,93891.0,93888.0,7.4629657]
[1763400323437,2.0,93889.0,93888.0,7.4629657]
[1763400323654,2.01971574,93889.0,93888.0,7.4629657]
[1763400324066,2.27457796,93889.0,93888.0,7.4629657]
[1763400324270,2.59757796,93889.0,93888.0,7.4629657]
[1763400324629,2.38456047,93889.0,93888.0,7.4629657]
[1763400324852,2.34271574,93889.0,93888.0,7.4629657]
[1763400325240,2.34271574,93889.0,93888.0,7.50638444]
[1763400325241,0.01971574,93889.0,93888.0,7.50638444]
[1763400325468,1.0715032,93898.0,93889.0,0.04341874]
[1763400325782,1.0715032,93898.0,93894.0,0.04341874]
[1763400326016,0.01973457,93897.0,93894.0,0.04341874]
[1763400326238,0.01974089,93896.0,93891.0,0.04341874]
[1763400326463,1.0715032,93898.0,93893.0,0.04341874]
[1763400326669,0.03203528,93928.0,93893.0,0.04341874]
[1763400326670,0.34274415,93897.0,93894.0,0.02130061]
[1763400326952,2.0,93903.0,93894.0,0.02130061]
[1763400327187,0.01974318,93902.0,93894.0,0.02130061]
[1763400327454,0.01974318,93901.0,93900.0,0.06867874]
[1763400327699,0.73244608,93910.0,93901.0,0.04341874]
[1763400327876,0.73244608,93910.0,93909.0,0.14758052]
[1763400328101,0.01975607,93910.0,93909.0,0.14758052]
[1763400328307,0.01975607,93910.0,93909.0,0.28024459]
[1763400328518,0.01975607,93910.0,93909.0,0.25894738]
[1763400328944,0.73244608,93919.0,93910.0,0.04341874]
[1763400329157,0.01976957,93918.0,93910.0,0.10416178]